[Event "Late-Titled-Tuesday-Blitz-April-02-2024"]
[Site "Chess.com"]
[Date "2024.04.02"]
[Round "4"]
[White "DeArron_Fox"]
[Black "XDPS"]
[Result "0-1"]
[WhiteElo "2529"]
[BlackElo "2913"]
[TimeControl "180+1"]
[EndTime "14:38:14 PDT"]
[Termination "XDPS won by resignation"]

1. d4 {[%clk 0:03:00.9]} 1... d5 {[%clk 0:03:00.1]} 2. c4 {[%clk 0:03:00.9]}
2... e6 {[%clk 0:03:00.6]} 3. Nc3 {[%clk 0:02:53.4]} 3... Nf6 {[%clk 0:03:00.8]}
4. cxd5 {[%clk 0:02:53.6]} 4... exd5 {[%clk 0:03:01.7]} 5. Bg5 {[%clk
0:02:53.8]} 5... c6 {[%clk 0:03:02.3]} 6. e3 {[%clk 0:02:54.2]} 6... h6 {[%clk
0:03:02.6]} 7. Bh4 {[%clk 0:02:52.9]} 7... Bd6 {[%clk 0:03:03.1]} 8. Bd3 {[%clk
0:02:52.3]} 8... O-O {[%clk 0:03:03.6]} 9. Nf3 {[%clk 0:02:43.2]} 9... Be6
{[%clk 0:03:02.8]} 10. O-O {[%clk 0:02:42.7]} 10... Nbd7 {[%clk 0:03:02.9]} 11.
Rc1 {[%clk 0:02:26.6]} 11... a5 {[%clk 0:03:02.9]} 12. Qc2 {[%clk 0:01:53.7]}
12... Re8 {[%clk 0:03:03]} 13. Nd2 {[%clk 0:01:49.5]} 13... Bxh2+ {[%clk
0:02:59.9]} 14. Kh1 {[%clk 0:01:39.8]} 14... Bd6 {[%clk 0:02:56.8]} 15. f4
{[%clk 0:01:33.6]} 15... Bg4 {[%clk 0:02:57.3]} 16. Rce1 {[%clk 0:01:27.9]}
16... b5 {[%clk 0:02:51.4]} 17. Nf3 {[%clk 0:01:18.9]} 17... Qb6 {[%clk
0:02:47.9]} 18. Ne5 {[%clk 0:01:14.7]} 18... h5 {[%clk 0:02:47.4]} 19. Bf5
{[%clk 0:00:49]} 19... Qb7 {[%clk 0:02:19.5]} 20. a3 {[%clk 0:00:31.2]} 20... b4
{[%clk 0:02:00]} 21. axb4 {[%clk 0:00:24.5]} 21... axb4 {[%clk 0:02:00]} 22. Ne2
{[%clk 0:00:22.5]} 22... b3 {[%clk 0:01:55.1]} 23. Qb1 {[%clk 0:00:19.1]} 23...
c5 {[%clk 0:01:40.7]} 24. Ng3 {[%clk 0:00:13]} 24... cxd4 {[%clk 0:01:36.9]} 25.
exd4 {[%clk 0:00:13.1]} 25... Bb4 {[%clk 0:01:37.7]} 26. Re3 {[%clk 0:00:06.9]}
26... Bd2 {[%clk 0:01:35.8]} 27. Rd3 {[%clk 0:00:06.9]} 27... Ba5 {[%clk
0:01:25.3]} 28. Re3 {[%clk 0:00:04.1]} 28... Nf8 {[%clk 0:01:18.6]} 29. Bxf6
{[%clk 0:00:02.3]} 29... gxf6 {[%clk 0:01:19.5]} 30. Nxg4 {[%clk 0:00:02.7]}
30... hxg4 {[%clk 0:01:19.8]} 31. Rxe8 {[%clk 0:00:03.6]} 31... Rxe8 {[%clk
0:01:19.3]} 32. Bxg4 {[%clk 0:00:04.3]} 32... Qb4 {[%clk 0:01:07.1]} 33. Qf5
{[%clk 0:00:03.9]} 33... Qxd4 {[%clk 0:00:59.2]} 34. Nh5 {[%clk 0:00:03.5]}
34... Bd8 {[%clk 0:00:59.4]} 35. Rd1 {[%clk 0:00:03.5]} 35... Qxb2 {[%clk
0:00:52.5]} 36. Qxd5 {[%clk 0:00:03.7]} 36... Ng6 {[%clk 0:00:43.2]} 37. Bf5
{[%clk 0:00:02.8]} 37... Nh4 {[%clk 0:00:39.7]} 38. Bd7 {[%clk 0:00:02.5]} 38...
Rf8 {[%clk 0:00:24.7]} 39. Bh3 {[%clk 0:00:02.4]} 39... Ng6 {[%clk 0:00:18.5]}
40. Qd3 {[%clk 0:00:01.7]} 40... Be7 {[%clk 0:00:17]} 41. Rb1 {[%clk 0:00:01.9]}
41... Qc2 {[%clk 0:00:17.4]} 42. Qxb3 {[%clk 0:00:01.9]} 42... Qf2 {[%clk
0:00:16.6]} 43. Qf3 {[%clk 0:00:02.1]} 43... Qh4 {[%clk 0:00:16.9]} 44. Rf1
{[%clk 0:00:02.1]} 44... f5 {[%clk 0:00:16.8]} 45. Ng3 {[%clk 0:00:02.4]} 45...
Bf6 {[%clk 0:00:14.8]} 46. Nxf5 {[%clk 0:00:02.9]} 46... Qh7 {[%clk 0:00:15.6]}
47. Qg4 {[%clk 0:00:02.7]} 47... Kh8 {[%clk 0:00:14.4]} 48. Ne3 {[%clk
0:00:02.2]} 48... Rg8 {[%clk 0:00:14.9]} 49. Qf5 {[%clk 0:00:02.5]} 49... Bd8
{[%clk 0:00:14.1]} 50. Nd5 {[%clk 0:00:03]} 50... Rf8 {[%clk 0:00:14.1]} 51. Re1
{[%clk 0:00:02.7]} 51... Qh4 {[%clk 0:00:14]} 52. Ne3 {[%clk 0:00:02.3]} 52...
Qxe1+ {[%clk 0:00:13.7]} 0-1

[Event "Late-Titled-Tuesday-Blitz-April-02-2024"]
[Site "Chess.com"]
[Date "2024.04.02"]
[Round "4"]
[White "Cluke86"]
[Black "Quattroporte300"]
[Result "1/2-1/2"]
[WhiteElo "2327"]
[BlackElo "2490"]
[TimeControl "180+1"]
[EndTime "14:38:15 PDT"]
[Termination "Game drawn - insufficient material"]

1. e4 {[%clk 0:03:00.9]} 1... c5 {[%clk 0:02:59.5]} 2. Nc3 {[%clk 0:03:00.5]}
2... Nc6 {[%clk 0:02:59.5]} 3. f4 {[%clk 0:03:00.6]} 3... d6 {[%clk 0:02:57.4]}
4. Nf3 {[%clk 0:02:59.7]} 4... g6 {[%clk 0:02:58]} 5. Bb5 {[%clk 0:02:56.6]}
5... Bg7 {[%clk 0:02:58.2]} 6. d3 {[%clk 0:02:55.3]} 6... Nf6 {[%clk 0:02:56]}
7. a4 {[%clk 0:02:53.2]} 7... O-O {[%clk 0:02:56.3]} 8. Bxc6 {[%clk 0:02:51.7]}
8... bxc6 {[%clk 0:02:55.4]} 9. O-O {[%clk 0:02:51.1]} 9... Bg4 {[%clk
0:02:49.7]} 10. h3 {[%clk 0:02:46.7]} 10... Bxf3 {[%clk 0:02:49.6]} 11. Qxf3
{[%clk 0:02:46.7]} 11... Nd7 {[%clk 0:02:50.3]} 12. a5 {[%clk 0:02:38]} 12...
Rb8 {[%clk 0:02:49.2]} 13. Kh1 {[%clk 0:02:26.2]} 13... a6 {[%clk 0:02:43.2]}
14. Qf2 {[%clk 0:02:14.3]} 14... Bd4 {[%clk 0:02:38.9]} 15. Qe1 {[%clk
0:02:12.1]} 15... Kg7 {[%clk 0:02:31.2]} 16. b3 {[%clk 0:02:11.2]} 16... e6
{[%clk 0:02:04.2]} 17. Bb2 {[%clk 0:01:52.6]} 17... Qf6 {[%clk 0:02:04.3]} 18.
Ra4 {[%clk 0:01:48.2]} 18... h5 {[%clk 0:02:02]} 19. Qa1 {[%clk 0:01:46.7]}
19... Rb4 {[%clk 0:01:54.3]} 20. Rxb4 {[%clk 0:01:40.4]} 20... cxb4 {[%clk
0:01:54]} 21. Nd1 {[%clk 0:01:40.7]} 21... Bxb2 {[%clk 0:01:49.8]} 22. Qxb2
{[%clk 0:01:41.6]} 22... Qxb2 {[%clk 0:01:47.3]} 23. Nxb2 {[%clk 0:01:42.5]}
23... d5 {[%clk 0:01:46]} 24. Na4 {[%clk 0:01:34.3]} 24... Rb8 {[%clk 0:01:46]}
25. Ra1 {[%clk 0:01:13.1]} 25... Rb5 {[%clk 0:01:45.7]} 26. Nb2 {[%clk
0:01:12.6]} 26... Nc5 {[%clk 0:01:41.5]} 27. exd5 {[%clk 0:01:06.2]} 27... cxd5
{[%clk 0:01:41.3]} 28. d4 {[%clk 0:01:05.6]} 28... Nb7 {[%clk 0:01:41.5]} 29.
Nd3 {[%clk 0:01:04.9]} 29... Nxa5 {[%clk 0:01:23.1]} 30. Ne5 {[%clk 0:00:39.6]}
30... Kf6 {[%clk 0:01:16.3]} 31. g4 {[%clk 0:00:35.9]} 31... hxg4 {[%clk
0:01:09.8]} 32. hxg4 {[%clk 0:00:36.8]} 32... g5 {[%clk 0:01:02.3]} 33. fxg5+
{[%clk 0:00:34.9]} 33... Kxg5 {[%clk 0:01:02.3]} 34. Nxf7+ {[%clk 0:00:31.6]}
34... Kxg4 {[%clk 0:01:02.4]} 35. Ne5+ {[%clk 0:00:23.3]} 35... Kf4 {[%clk
0:01:01.7]} 36. Kg2 {[%clk 0:00:20.2]} 36... Ke3 {[%clk 0:00:51.7]} 37. Nf3
{[%clk 0:00:17.7]} 37... Kf4 {[%clk 0:00:40.8]} 38. Kf2 {[%clk 0:00:15.7]} 38...
Kf5 {[%clk 0:00:30.3]} 39. Ne5 {[%clk 0:00:14.6]} 39... Ke4 {[%clk 0:00:25.5]}
40. Nf3 {[%clk 0:00:13.7]} 40... Kf4 {[%clk 0:00:25.9]} 41. Ke2 {[%clk
0:00:13.3]} 41... Ke4 {[%clk 0:00:17.6]} 42. Kf2 {[%clk 0:00:10.2]} 42... Nc6
{[%clk 0:00:12.7]} 43. Rxa6 {[%clk 0:00:08.8]} 43... Nxd4 {[%clk 0:00:12.8]} 44.
Nxd4 {[%clk 0:00:06.3]} 44... Kxd4 {[%clk 0:00:13.7]} 45. Rxe6 {[%clk
0:00:06.4]} 45... Rc5 {[%clk 0:00:12.1]} 46. Re2 {[%clk 0:00:04.9]} 46... Kc3
{[%clk 0:00:11.3]} 47. Ke1 {[%clk 0:00:04.9]} 47... d4 {[%clk 0:00:08.3]} 48.
Rd2 {[%clk 0:00:04.6]} 48... Re5+ {[%clk 0:00:07.7]} 49. Kd1 {[%clk 0:00:05]}
49... Rh5 {[%clk 0:00:07.7]} 50. Rd3+ {[%clk 0:00:05.3]} 50... Kb2 {[%clk
0:00:08.3]} 51. Rxd4 {[%clk 0:00:05.7]} 51... Rh1+ {[%clk 0:00:08.8]} 52. Kd2
{[%clk 0:00:06.1]} 52... Rh2+ {[%clk 0:00:09.2]} 53. Kd1 {[%clk 0:00:05.6]}
53... Rxc2 {[%clk 0:00:08.4]} 54. Rxb4 {[%clk 0:00:05.5]} 54... Rc3 {[%clk
0:00:09]} 55. Rb8 {[%clk 0:00:05.2]} 55... Rxb3 {[%clk 0:00:09.5]} 56. Rxb3+
{[%clk 0:00:05.2]} 56... Kxb3 {[%clk 0:00:10.4]} 1/2-1/2

[Event "Late-Titled-Tuesday-Blitz-April-02-2024"]
[Site "Chess.com"]
[Date "2024.04.02"]
[Round "4"]
[White "campochess"]
[Black "ElephantChessGenius"]
[Result "1-0"]
[WhiteElo "2187"]
[BlackElo "2322"]
[TimeControl "180+1"]
[EndTime "14:38:15 PDT"]
[Termination "campochess won on time"]

1. Nf3 {[%clk 0:02:50.8]} 1... c5 {[%clk 0:02:54.7]} 2. b3 {[%clk 0:02:49.9]}
2... Nc6 {[%clk 0:02:51.5]} 3. Bb2 {[%clk 0:02:49.7]} 3... Nf6 {[%clk
0:02:48.8]} 4. c4 {[%clk 0:02:48.5]} 4... d5 {[%clk 0:02:48.1]} 5. cxd5 {[%clk
0:02:48.2]} 5... Nxd5 {[%clk 0:02:48.1]} 6. g3 {[%clk 0:02:48.5]} 6... e6 {[%clk
0:02:42.6]} 7. Bg2 {[%clk 0:02:48.5]} 7... Be7 {[%clk 0:02:33]} 8. O-O {[%clk
0:02:48.2]} 8... O-O {[%clk 0:02:32.1]} 9. Nc3 {[%clk 0:02:48.2]} 9... Nc7
{[%clk 0:02:30.9]} 10. d3 {[%clk 0:02:47.1]} 10... Rb8 {[%clk 0:02:26.3]} 11.
Rc1 {[%clk 0:02:46.9]} 11... b6 {[%clk 0:02:25.7]} 12. Ne4 {[%clk 0:02:44.1]}
12... f6 {[%clk 0:02:20.8]} 13. Ned2 {[%clk 0:02:41.4]} 13... e5 {[%clk
0:02:20.7]} 14. Nc4 {[%clk 0:02:36.1]} 14... Be6 {[%clk 0:02:19.6]} 15. Nfd2
{[%clk 0:02:26.2]} 15... Nd5 {[%clk 0:02:13.9]} 16. a3 {[%clk 0:02:19.5]} 16...
b5 {[%clk 0:02:08.6]} 17. Bxd5 {[%clk 0:02:17.4]} 17... Bxd5 {[%clk 0:02:00.4]}
18. Ne3 {[%clk 0:02:17.4]} 18... Be6 {[%clk 0:01:58.3]} 19. Ne4 {[%clk
0:02:14.9]} 19... Qb6 {[%clk 0:01:56.5]} 20. Qc2 {[%clk 0:02:08.2]} 20... Nd4
{[%clk 0:01:50]} 21. Qd1 {[%clk 0:02:01]} 21... Nxb3 {[%clk 0:01:42.3]} 22. Nc3
{[%clk 0:01:45.8]} 22... Nxc1 {[%clk 0:01:40.9]} 23. Qxc1 {[%clk 0:01:43.5]}
23... Rfd8 {[%clk 0:01:36.3]} 24. Ne4 {[%clk 0:01:42.3]} 24... Rbc8 {[%clk
0:01:32.2]} 25. Qc2 {[%clk 0:01:35.7]} 25... a5 {[%clk 0:01:26.7]} 26. Rc1
{[%clk 0:01:35.6]} 26... h5 {[%clk 0:01:06.3]} 27. h4 {[%clk 0:01:34]} 27... a4
{[%clk 0:00:58.4]} 28. Qb1 {[%clk 0:01:28]} 28... b4 {[%clk 0:00:55.8]} 29. Qa1
{[%clk 0:01:25]} 29... b3 {[%clk 0:00:53.1]} 30. Nc4 {[%clk 0:01:19.4]} 30...
Bxc4 {[%clk 0:00:49.1]} 31. Rxc4 {[%clk 0:01:18.4]} 31... Qb5 {[%clk 0:00:40]}
32. Nc3 {[%clk 0:01:17.5]} 32... Qb7 {[%clk 0:00:37.5]} 33. Nxa4 {[%clk
0:01:16.7]} 33... Rc6 {[%clk 0:00:32.5]} 34. Nc3 {[%clk 0:01:15.6]} 34... Rd4
{[%clk 0:00:31.1]} 35. Ne4 {[%clk 0:01:05.9]} 35... Rxc4 {[%clk 0:00:30.9]} 36.
dxc4 {[%clk 0:01:06]} 36... Rc8 {[%clk 0:00:22.4]} 37. Nc3 {[%clk 0:01:05.9]}
37... Qa6 {[%clk 0:00:21.6]} 38. Nb5 {[%clk 0:01:03.6]} 38... Qa4 {[%clk
0:00:19.9]} 39. Qc1 {[%clk 0:01:02.2]} 39... Rb8 {[%clk 0:00:17.9]} 40. Nc7
{[%clk 0:00:58.8]} 40... Bd6 {[%clk 0:00:15.9]} 41. Nd5 {[%clk 0:00:58.6]} 41...
Qa6 {[%clk 0:00:14]} 42. Qc3 {[%clk 0:00:57.2]} 42... Rd8 {[%clk 0:00:12.7]} 43.
Qxb3 {[%clk 0:00:47.7]} 43... Rb8 {[%clk 0:00:11.2]} 44. Qc2 {[%clk 0:00:46]}
44... Rxb2 {[%clk 0:00:10.8]} 45. Qxb2 {[%clk 0:00:45.2]} 45... Qxc4 {[%clk
0:00:11.3]} 46. Qb7 {[%clk 0:00:42.6]} 46... Qxe2 {[%clk 0:00:09]} 47. Qc8+
{[%clk 0:00:41]} 47... Kh7 {[%clk 0:00:08.6]} 48. Qe6 {[%clk 0:00:39.6]} 48...
Qd1+ {[%clk 0:00:05.5]} 49. Kg2 {[%clk 0:00:37.9]} 49... Bf8 {[%clk 0:00:05]}
50. Ne3 {[%clk 0:00:36.7]} 50... Qd3 {[%clk 0:00:02.9]} 51. a4 {[%clk
0:00:34.4]} 51... Qe4+ {[%clk 0:00:03.1]} 52. Kg1 {[%clk 0:00:33.8]} 52... Qxa4
{[%clk 0:00:03]} 53. Qf5+ {[%clk 0:00:30.8]} 53... Kg8 {[%clk 0:00:02.4]} 54.
Qxh5 {[%clk 0:00:30.5]} 54... Qa1+ {[%clk 0:00:02.1]} 55. Kg2 {[%clk 0:00:28.1]}
55... Qa8+ {[%clk 0:00:02.6]} 56. Kg1 {[%clk 0:00:26.7]} 56... Qc6 {[%clk
0:00:03.1]} 57. Qf5 {[%clk 0:00:24.4]} 57... c4 {[%clk 0:00:03]} 58. Qc2 {[%clk
0:00:24.6]} 58... c3 {[%clk 0:00:03.3]} 59. Qb3+ {[%clk 0:00:24.6]} 59... Kh8
{[%clk 0:00:02.6]} 60. Qf7 {[%clk 0:00:23.1]} 60... Bb4 {[%clk 0:00:01.6]} 61.
Nf5 {[%clk 0:00:21.4]} 1-0

[Event "Late-Titled-Tuesday-Blitz-April-02-2024"]
[Site "Chess.com"]
[Date "2024.04.02"]
[Round "4"]
[White "Nick12772"]
[Black "elcala"]
[Result "1-0"]
[WhiteElo "2411"]
[BlackElo "1807"]
[TimeControl "180+1"]
[EndTime "14:38:19 PDT"]
[Termination "Nick12772 won on time"]

1. Nf3 {[%clk 0:03:00.9]} 1... Nf6 {[%clk 0:02:58.4]} 2. g3 {[%clk 0:03:01.5]}
2... c5 {[%clk 0:02:56.7]} 3. Bg2 {[%clk 0:03:01.3]} 3... Nc6 {[%clk 0:02:57]}
4. d4 {[%clk 0:03:00.8]} 4... cxd4 {[%clk 0:02:55.4]} 5. Nxd4 {[%clk 0:03:01.7]}
5... Nxd4 {[%clk 0:02:55.2]} 6. Qxd4 {[%clk 0:03:01.6]} 6... d6 {[%clk
0:02:54.8]} 7. O-O {[%clk 0:03:01.8]} 7... g6 {[%clk 0:02:53.4]} 8. c4 {[%clk
0:03:01.9]} 8... Bg7 {[%clk 0:02:47.6]} 9. Nc3 {[%clk 0:03:02.3]} 9... O-O
{[%clk 0:02:45.2]} 10. b3 {[%clk 0:03:02.4]} 10... Qc7 {[%clk 0:02:33.4]} 11.
Bb2 {[%clk 0:03:01.6]} 11... Bd7 {[%clk 0:02:30.4]} 12. Nd5 {[%clk 0:03:01.7]}
12... Qd8 {[%clk 0:02:27]} 13. Rac1 {[%clk 0:02:28.5]} 13... Ne8 {[%clk
0:02:22.3]} 14. Qd2 {[%clk 0:02:24]} 14... Bxb2 {[%clk 0:02:19.5]} 15. Qxb2
{[%clk 0:02:24.9]} 15... Bc6 {[%clk 0:02:17.9]} 16. h4 {[%clk 0:02:22]} 16... e6
{[%clk 0:02:15.8]} 17. Ne3 {[%clk 0:02:15.4]} 17... Bxg2 {[%clk 0:02:14.8]} 18.
Nxg2 {[%clk 0:02:16.3]} 18... Qf6 {[%clk 0:02:14.3]} 19. Qxf6 {[%clk 0:02:12.3]}
19... Nxf6 {[%clk 0:02:15.2]} 20. Rfd1 {[%clk 0:02:12.9]} 20... Rfd8 {[%clk
0:02:11.5]} 21. Rd2 {[%clk 0:02:10.4]} 21... Kf8 {[%clk 0:02:07.8]} 22. Rcd1
{[%clk 0:02:10.5]} 22... Ke7 {[%clk 0:02:06]} 23. f3 {[%clk 0:02:07.7]} 23... b6
{[%clk 0:02:02.6]} 24. e4 {[%clk 0:02:07]} 24... Nh5 {[%clk 0:01:54.1]} 25. Kf2
{[%clk 0:02:06]} 25... h6 {[%clk 0:01:47.9]} 26. g4 {[%clk 0:02:01.2]} 26... Nf6
{[%clk 0:01:45]} 27. Ne3 {[%clk 0:01:51.9]} 27... g5 {[%clk 0:01:39.5]} 28. h5
{[%clk 0:01:48]} 28... Rac8 {[%clk 0:01:29.2]} 29. a4 {[%clk 0:01:36.5]} 29...
a5 {[%clk 0:01:24.1]} 30. Nc2 {[%clk 0:01:31.2]} 30... Rc6 {[%clk 0:01:13.6]}
31. e5 {[%clk 0:01:24.7]} 31... Ne8 {[%clk 0:01:06.9]} 32. Re1 {[%clk
0:00:56.5]} 32... d5 {[%clk 0:00:57.1]} 33. Ne3 {[%clk 0:00:51.8]} 33... dxc4
{[%clk 0:00:53.7]} 34. Nxc4 {[%clk 0:00:52.5]} 34... Rxc4 {[%clk 0:00:46.7]} 35.
Rxd8 {[%clk 0:00:51.5]} 35... Rc2+ {[%clk 0:00:42.3]} 36. Kg3 {[%clk 0:00:51.5]}
36... Kxd8 {[%clk 0:00:40.9]} 37. Rb1 {[%clk 0:00:48]} 37... Rc6 {[%clk
0:00:39.8]} 38. b4 {[%clk 0:00:48]} 38... axb4 {[%clk 0:00:38.4]} 39. Rxb4
{[%clk 0:00:47.9]} 39... Kc7 {[%clk 0:00:38]} 40. f4 {[%clk 0:00:43.5]} 40...
gxf4+ {[%clk 0:00:36.4]} 41. Rxf4 {[%clk 0:00:44.4]} 41... Rc3+ {[%clk
0:00:33.1]} 42. Kh4 {[%clk 0:00:42.4]} 42... Re3 {[%clk 0:00:26.1]} 43. Rxf7+
{[%clk 0:00:41.9]} 43... Kc6 {[%clk 0:00:25.5]} 44. Re7 {[%clk 0:00:39.6]} 44...
Nc7 {[%clk 0:00:23.5]} 45. g5 {[%clk 0:00:33.5]} 45... Re4+ {[%clk 0:00:22.5]}
46. Kg3 {[%clk 0:00:33.9]} 46... hxg5 {[%clk 0:00:21.5]} 47. h6 {[%clk
0:00:34.5]} 47... Rh4 {[%clk 0:00:20.3]} 48. h7 {[%clk 0:00:34.9]} 48... Rh1
{[%clk 0:00:10.6]} 49. Kg2 {[%clk 0:00:33.3]} 49... Rh6 {[%clk 0:00:08.7]} 50.
Rg7 {[%clk 0:00:29.2]} 50... Nd5 {[%clk 0:00:07.6]} 51. Kg3 {[%clk 0:00:27.6]}
51... Ne3 {[%clk 0:00:04.9]} 52. Kf3 {[%clk 0:00:27.3]} 52... Nf5 {[%clk
0:00:04.8]} 53. Rf7 {[%clk 0:00:22.1]} 53... Nd4+ {[%clk 0:00:02.8]} 54. Kg4
{[%clk 0:00:21.9]} 54... Nf5 {[%clk 0:00:02]} 55. Kxg5 {[%clk 0:00:19.1]} 55...
Rh1 {[%clk 0:00:02]} 56. Kg6 {[%clk 0:00:17.1]} 56... Rg1+ {[%clk 0:00:02.5]}
57. Kf6 {[%clk 0:00:17.7]} 57... Rh1 {[%clk 0:00:02.5]} 58. Kxe6 {[%clk
0:00:17.1]} 58... Rh6+ {[%clk 0:00:02.6]} 59. Kxf5 {[%clk 0:00:16.6]} 1-0

[Event "Late-Titled-Tuesday-Blitz-April-02-2024"]
[Site "Chess.com"]
[Date "2024.04.02"]
[Round "4"]
[White "Road2GM3000"]
[Black "IamSchrodingersCat"]
[Result "1-0"]
[WhiteElo "2493"]
[BlackElo "2620"]
[TimeControl "180+1"]
[EndTime "14:38:20 PDT"]
[Termination "Road2GM3000 won by resignation"]

1. d4 {[%clk 0:02:36.9]} 1... Nf6 {[%clk 0:02:59.6]} 2. c4 {[%clk 0:02:32.5]}
2... g6 {[%clk 0:02:59.2]} 3. Nc3 {[%clk 0:02:32.3]} 3... Bg7 {[%clk 0:02:59.2]}
4. e4 {[%clk 0:02:33]} 4... d6 {[%clk 0:02:59]} 5. f4 {[%clk 0:02:33.5]} 5... c5
{[%clk 0:02:57.5]} 6. d5 {[%clk 0:02:33.5]} 6... O-O {[%clk 0:02:56.4]} 7. Nf3
{[%clk 0:02:33.2]} 7... e6 {[%clk 0:02:55.9]} 8. Be2 {[%clk 0:02:33.4]} 8...
exd5 {[%clk 0:02:55.3]} 9. exd5 {[%clk 0:02:34.3]} 9... Bg4 {[%clk 0:02:37.1]}
10. O-O {[%clk 0:02:30.9]} 10... Re8 {[%clk 0:02:36.4]} 11. Bd3 {[%clk
0:02:29.7]} 11... Nbd7 {[%clk 0:02:24.9]} 12. Bd2 {[%clk 0:02:29.4]} 12... a6
{[%clk 0:02:10.3]} 13. a4 {[%clk 0:02:29.5]} 13... Nh5 {[%clk 0:01:45.6]} 14. f5
{[%clk 0:02:05.7]} 14... Ne5 {[%clk 0:01:31.1]} 15. Be2 {[%clk 0:02:05.9]} 15...
Bxf3 {[%clk 0:01:24.9]} 16. Bxf3 {[%clk 0:02:06.3]} 16... Nxc4 {[%clk
0:01:03.8]} 17. Bxh5 {[%clk 0:01:59.9]} 17... gxh5 {[%clk 0:01:04.7]} 18. Bf4
{[%clk 0:01:42.2]} 18... Qh4 {[%clk 0:00:56.9]} 19. Qb3 {[%clk 0:01:20.2]} 19...
Ne3 {[%clk 0:00:32.7]} 20. Rf3 {[%clk 0:00:59.2]} 20... Bd4 {[%clk 0:00:31.8]}
21. Kh1 {[%clk 0:00:46.7]} 21... b5 {[%clk 0:00:23.2]} 22. Bxd6 {[%clk 0:00:35]}
22... Kh8 {[%clk 0:00:19]} 23. f6 {[%clk 0:00:25.1]} 23... Rg8 {[%clk 0:00:16]}
24. Bg3 {[%clk 0:00:24.7]} 24... Qg5 {[%clk 0:00:12]} 25. Ne4 {[%clk 0:00:25.4]}
25... Qg6 {[%clk 0:00:10]} 26. Rxe3 {[%clk 0:00:25.1]} 26... Bxe3 {[%clk
0:00:08.9]} 27. Qxe3 {[%clk 0:00:26]} 27... h4 {[%clk 0:00:07.4]} 28. Nxc5
{[%clk 0:00:09.8]} 28... hxg3 {[%clk 0:00:07.1]} 29. h3 {[%clk 0:00:10.6]} 29...
Rad8 {[%clk 0:00:06]} 30. Rd1 {[%clk 0:00:09.9]} 30... Qxf6 {[%clk 0:00:05.4]}
31. axb5 {[%clk 0:00:09.4]} 31... axb5 {[%clk 0:00:05.7]} 32. Ne4 {[%clk
0:00:08.7]} 32... Qxb2 {[%clk 0:00:05]} 33. d6 {[%clk 0:00:08.3]} 33... Qg7
{[%clk 0:00:05.2]} 34. d7 {[%clk 0:00:08.3]} 34... f5 {[%clk 0:00:05.1]} 35. Nc5
{[%clk 0:00:08]} 35... Qf7 {[%clk 0:00:02.7]} 36. Qd4+ {[%clk 0:00:08]} 36...
Qg7 {[%clk 0:00:02.6]} 37. Ne6 {[%clk 0:00:06.4]} 37... Qxd4 {[%clk 0:00:02.3]}
38. Rxd4 {[%clk 0:00:07.3]} 38... b4 {[%clk 0:00:02.2]} 39. Nxd8 {[%clk
0:00:05.3]} 39... Rxd8 {[%clk 0:00:03.1]} 40. Kg1 {[%clk 0:00:05.3]} 40... b3
{[%clk 0:00:02.7]} 41. Kf1 {[%clk 0:00:05.2]} 41... b2 {[%clk 0:00:03.2]} 42.
Rb4 {[%clk 0:00:05.8]} 42... Rxd7 {[%clk 0:00:03.6]} 43. Rxb2 {[%clk 0:00:06.5]}
43... f4 {[%clk 0:00:03.8]} 44. Ke2 {[%clk 0:00:06.7]} 44... h5 {[%clk
0:00:01.1]} 45. Kf3 {[%clk 0:00:07.3]} 45... Kh7 {[%clk 0:00:01.8]} 46. Rb6
{[%clk 0:00:07.8]} 46... Rg7 {[%clk 0:00:02.3]} 47. Rb5 {[%clk 0:00:08.2]} 47...
h4 {[%clk 0:00:02.9]} 48. Rh5+ {[%clk 0:00:08.6]} 48... Kg6 {[%clk 0:00:03.7]}
49. Rxh4 {[%clk 0:00:09.5]} 49... Kf5 {[%clk 0:00:04.2]} 50. Rxf4+ {[%clk
0:00:10.2]} 50... Ke5 {[%clk 0:00:04.8]} 51. Rg4 {[%clk 0:00:10.6]} 51... Rf7+
{[%clk 0:00:04.7]} 52. Kxg3 {[%clk 0:00:11.5]} 52... Ra7 {[%clk 0:00:05.3]} 53.
Rf4 {[%clk 0:00:11.6]} 53... Ra3+ {[%clk 0:00:04.8]} 54. Rf3 {[%clk 0:00:12.3]}
54... Ra2 {[%clk 0:00:05.7]} 55. h4 {[%clk 0:00:12.8]} 55... Ra1 {[%clk
0:00:06.1]} 56. h5 {[%clk 0:00:12.7]} 56... Rh1 {[%clk 0:00:07]} 57. Kg4 {[%clk
0:00:13.4]} 57... Ke4 {[%clk 0:00:06]} 58. Rf8 {[%clk 0:00:12.3]} 58... Ke5
{[%clk 0:00:05.6]} 59. Kg5 {[%clk 0:00:11.5]} 59... Ke6 {[%clk 0:00:06.2]} 60.
g4 {[%clk 0:00:12.1]} 60... Ke7 {[%clk 0:00:06.7]} 61. Rf5 {[%clk 0:00:12.7]}
61... Rd1 {[%clk 0:00:06.5]} 62. Kg6 {[%clk 0:00:13.3]} 62... Ke6 {[%clk
0:00:05.2]} 63. h6 {[%clk 0:00:13.4]} 63... Rf1 {[%clk 0:00:03.8]} 64. Rxf1
{[%clk 0:00:13.2]} 1-0